[Event "Portuguese-ch U14-20 2022"]
[Site "Fatima"]
[Date "2022.04.13"]
[Round "6.18"]
[White "Duque, Raquel Dos Santos"]
[Black "Oliveira, Maria Elisa Ramos Ma"]
[Result "1-0"]
[ECO "A13"]
[WhiteElo "1510"]
[BlackElo "1316"]
[Annotator "NA RC"]
[PlyCount "63"]
[EventDate "2022.04.10"]
[EventType "swiss"]
[EventCountry "POR"]
[SourceTitle "playchess.com"]
[Source "ChessBase"]
[SourceQuality "1"]
[TimeControl "5400+30"]

1. c4 {[%emt 0:00:02]} e6 {[%emt 0:00:07]} 2. g3 {[%emt 0:00:12]} d5 {[%emt 0:00:50]} 3. Bg2 {[%emt 0:00:27]} Nf6 {[%emt 0:01:34]} 4. Nf3 {[%emt 0:00:16]} b6 {[%emt 0:02:55]} 5. O-O {[%emt 0:03:23]} Bb7 {[%emt 0:02:23]} 6. d3 {[%emt 0:01:52]} Be7 {[%emt 0:06:41]} 7. Bf4 {[%emt 0:02:05]} O-O {[%emt 0:00:33]} 8. Nc3 {[%emt 0:00:10]} a6 {[%emt 0:01:11]} 9. Qc2 {[%emt 0:02:02]} Bd6 {[%emt 0:03:39]} 10. Bxd6 {[%emt 0:09:56]} Qxd6 {[%emt 0:00:45]} 11. cxd5 {[%emt 0:00:45]} exd5 {[%emt 0:01:20]} 12. d4 {[%emt 0:00:25]} Nc6 {[%emt 0:04:40]} 13. e3 {[%emt 0:02:35]} Ne7 {[%emt 0:07:52]} 14. Rfd1 {[%emt 0:03:32]} c5 {[%emt 0:06:28]} 15. dxc5 {[%emt 0:00:48]} Qxc5 {[%emt 0:00:13]} 16. Rac1 {[%emt 0:03:01]} Qa5 {[%emt 0:05:18]} 17. Nd4 {[%emt 0:03:19]} b5 {[%emt 0:00:56]} 18. Nf5 {[%emt 0:05:44]} Nxf5 {[%emt 0:02:04]} 19. Qxf5 {[%emt 0:00:08]} b4 {[%emt 0:05:38]} 20. Nxd5 {[%emt 0:00:30]} Nxd5 {[%emt 0:00:09]} 21. Bxd5 {[%emt 0:00:08]} Bxd5 {[%emt 0:00:51]} 22. Qxd5 {[%emt 0:00:18]} Qa4 {[%emt 0:00:53]} 23. Rd4 {[%emt 0:07:07]} Rab8 {[%emt 0:02:45]} 24. a3 {[%emt 0:00:29]} a5 {[%emt 0:00:57]} 25. Rc5 {[%emt 0:02:28]} Qe8 {[%emt 0:01:58]} 26. Rxa5 {[%emt 0:01:29]} bxa3 {[%emt 0:00:13]} 27. bxa3 {[%emt 0:00:14]} Qc8 {[%emt 0:00:45]} 28. Qd7 {[%emt 0:01:47]} Qc1+ {[%emt 0:00:42]} 29. Kg2 {[%emt 0:00:06]} Rb2 {[%emt 0:00:40]} 30. Qe7 {[%emt 0:02:40]} h6 {[%emt 0:00:44]} 31. Ra7 {[%emt 0:01:08]} Rb1 {[%emt 0:00:53]} 32. Qxf8+ {[%emt 0:00:20]} 1-0

[Event "Portuguese-ch U14-20 2022"]
[Site "Fatima"]
[Date "2022.04.13"]
[Round "6.19"]
[White "Bernardo, Beatriz Nunes"]
[Black "Monteiro, Simao Costa"]
[Result "0-1"]
[ECO "B01"]
[WhiteElo "1144"]
[BlackElo "1346"]
[Annotator "NA RC"]
[PlyCount "94"]
[EventDate "2022.04.10"]
[EventType "swiss"]
[EventCountry "POR"]
[SourceTitle "playchess.com"]
[Source "ChessBase"]
[SourceQuality "1"]
[TimeControl "5400+30"]

1. e4 d5 2. exd5 Nf6 3. d4 Nxd5 4. Bb5+ Bd7 5. Be2 g6 6. Nf3 Bg7 7. O-O O-O 8. c4 Nb6 9. Nc3 Nc6 10. Be3 Bg4 11. d5 Bxf3 12. Bxf3 Ne5 13. Bxb6 Nxf3+ 14. Qxf3 axb6 15. Rfd1 Qd7 16. b3 c6 17. dxc6 Qxc6 18. Qxc6 bxc6 19. Rd3 Rfd8 20. Rxd8+ Rxd8 21. Rd1 Rxd1+ 22. Nxd1 Bd4 23. Ne3 Bxe3 24. fxe3 c5 25. Kf2 f5 26. Kf3 Kf7 27. e4 e5 28. h3 Ke6 29. a3 g5 30. g4 f4 31. Ke2 Kd6 32. Kf3 Kc6 33. Ke2 b5 34. cxb5+ Kxb5 35. a4+ Kb4 36. Kf3 c4 37. bxc4 Kxa4 38. c5 Kb5 39. c6 Kxc6 40. Ke2 Kc5 41. Kf2 Kd4 42. Kf3 Kd3 43. Kf2 Kxe4 44. Ke2 h6 45. h4 gxh4 46. g5 hxg5 47. Kf2 Kd3 0-1

[Event "Portuguese-ch U14-20 2022"]
[Site "Fatima"]
[Date "2022.04.13"]
[Round "6.20"]
[White "Ferreira, Tiago Filipe Quiteri"]
[Black "Gomes, Guilherme Rodrigues"]
[Result "1-0"]
[ECO "D02"]
[WhiteElo "1699"]
[BlackElo "1899"]
[Annotator "NA RC"]
[PlyCount "51"]
[EventDate "2022.04.10"]
[EventType "swiss"]
[EventCountry "POR"]
[SourceTitle "playchess.com"]
[Source "ChessBase"]
[SourceQuality "1"]
[TimeControl "5400+30"]

1. d4 {[%emt 0:00:50]} Nf6 {[%emt 0:01:31]} 2. Bf4 {[%emt 0:00:33]} d5 {[%emt 0:01:12]} 3. Nf3 {[%emt 0:00:25]} Bf5 {[%emt 0:02:08]} 4. e3 {[%emt 0:02:35]} e6 {[%emt 0:01:43]} 5. Bd3 {[%emt 0:01:21]} Be4 {[%emt 0:02:52]} 6. Bxe4 {[%emt 0:09:32]} dxe4 {[%emt 0:01:21]} (6... Nxe4 $11 7. Nbd2 Nxd2 8. Qxd2 (8. Kxd2 Nd7 $11) 8... Nc6) 7. Ne5 {[%emt 0:01:40]} Bd6 {[%emt 0:01:46]} 8. c3 {[%emt 0:02:52]} (8. Nd2 $16) 8... Nc6 $16 {[%emt 0:01:39]} 9. Nd2 {[%emt 0:09:20]} Nd5 {[%emt 0:01:44]} 10. Bg3 {[%emt 0:04:18]} f6 {[%emt 0:02:02]} 11. Qh5+ {[%emt 0:03:17]} g6 {[%emt 0:04:18]} 12. Nxg6 {[%emt 0:00:14]} Rg8 {[%emt 0:02:20]} 13. Nf4+ {[%emt 0:07:22]} Ke7 {[%emt 0:01:29]} 14. Qxh7+ {[%emt 0:01:45]} Kf8 {[%emt 0:02:21]} 15. Nxe6+ {[%emt 0:00:25]} Ke8 {[%emt 0:02:22]} 16. Nxd8 {[%emt 0:00:13]} Rxd8 {[%emt 0:01:51]} 17. Qxg8+ {[%emt 0:00:39]} Kd7 {[%emt 0:00:30]} 18. Qxd5 {[%emt 0:00:33]} Re8 {[%emt 0:01:43]} 19. Bxd6 {[%emt 0:01:25]} cxd6 {[%emt 0:01:05]} 20. Nxe4 {[%emt 0:00:35]} Re6 {[%emt 0:01:17]} 21. Nc5+ {[%emt 0:01:37]} Kc7 {[%emt 0:01:18]} 22. Nxe6+ {[%emt 0:00:14]} Kb6 {[%emt 0:00:35]} 23. Qb3+ {[%emt 0:03:04]} Ka5 {[%emt 0:01:05]} 24. Nc7 {[%emt 0:00:41]} a6 {[%emt 0:00:56]} 25. d5 {[%emt 0:00:42]} Ne5 {[%emt 0:00:27]} 26. Qb4# 1-0

[Event "Portuguese-ch U14-20 2022"]
[Site "Fatima"]
[Date "2022.04.13"]
[Round "6.22"]
[White "Paiva, Rodrigo Garcia"]
[Black "Basilio, Rodrigo"]
[Result "1-0"]
[ECO "E98"]
[WhiteElo "1667"]
[BlackElo "1941"]
[Annotator "TA"]
[PlyCount "140"]
[EventDate "2022.04.10"]
[EventType "swiss"]
[EventCountry "POR"]
[SourceTitle "playchess.com"]
[Source "ChessBase"]
[SourceQuality "1"]
[TimeControl "5400+30"]

{[%evp 29,140,38,55,27,47,17,25,10,22,0,25,-76,0,0,0,-27,-15,-30,-25,-67,-66,-75,-77,-156,-151,-261,-239,-303,-269,-277,-275,-286,-287,-250,-246,-1587,-778,-781,-202,-174,-179,-150,-178,-174,-183,-174,-106,-88,0,-171,-160,-169,-158,-239,-98,-169,-111,-101,537,79,205,32,1008,585,627,-1836,0,0,0,0,0,0,8,0,0,0,45,45,45,0,0,0,792,747,2468,2468,2383,2383,2126,2035,2232,2132,2434,1360,2337,1923,29965,29967,29968,29969,29971,29972,7666,6520,29982,29983,29980,29975,29989,29987,29987,29987,29987]} 1. d4 {[%emt 0:00:32]} Nf6 2. c4 {[%emt 0:00:07]} g6 {[%emt 0:00:09]} 3. Nc3 {[%emt 0:00:05]} Bg7 {[%emt 0:00:03]} 4. e4 {[%emt 0:00:12]} d6 {[%emt 0:00:03]} 5. Nf3 {[%emt 0:00:11]} O-O {[%emt 0:00:06]} 6. Be2 {[%emt 0:00:09]} e5 {[%emt 0:00:04]} 7. O-O {[%emt 0:00:16]} Nc6 {[%emt 0:00:03]} 8. d5 {[%emt 0:00:08]} Ne7 {[%emt 0:00:04]} 9. Ne1 {[%emt 0:00:11]} Nd7 {[%emt 0:00:08]} 10. Be3 {[%emt 0:00:08]} f5 {[%emt 0:00:06]} 11. f3 {[%emt 0:00:04]} f4 {[%emt 0:00:08]} 12. Bf2 {[%emt 0:00:10]} g5 {[%emt 0:00:12][%cal Bg6g5,Bg5g4,Bg4g3,Bg3h2][%mdl 32]} 13. Nd3 {[%emt 0:04:18]} Ng6 {[%emt 0:02:50]} 14. c5 {[%emt 0:01:41]} Nf6 {[%emt 0:00:52]} 15. Rc1 {[%emt 0:01:20]} Rf7 {[%emt 0:01:16]} 16. a4 {[%emt 0:01:52] is the legacy move (16.Kh1). E99: King's Indian: Classical Main Line: 9 Ne1 Nd7 10 f3 f5.} h5 {[%emt 0:03:00]} 17. a5 {[%emt 0:03:34][%cal Oa5a6]} g4 {[%emt 0:05:15]} 18. cxd6 {[%emt 0:03:54] White has an edge.} cxd6 {[%emt 0:02:32]} 19. Nb5 {[%emt 0:09:51]} g3 {[%emt 0:21:56] [#]} 20. Bxa7 $146 {[%emt 0:03:08]} (20. hxg3 $11 {remains equal.} fxg3 21. Bxg3) ({Predecessor:} 20. hxg3 fxg3 21. Bxg3 h4 22. Be1 Nh5 23. f4 Nhxf4 24. Bh5 Qg5 25. Nxf4 Rxf4 26. Nxd6 {0-1 (51) Volokitin,A (2638)-Cheparinov,I (2682) Dubai 2014}) 20... Ne8 {[%emt 0:08:25]} (20... Qxa5 $17 21. hxg3 Qxb5 22. Nxe5 Qa5) 21. Rxc8 $1 $11 {[%emt 0:03:45]} Rxc8 {[%emt 0:01:03]} 22. Bb6 {[%emt 0:01:29]} (22. hxg3 fxg3 23. Nf2 gxf2+ $19) 22... gxh2+ {[%emt 0:02:04]} 23. Kh1 {[%emt 0:04:32]} Qg5 {[%emt 0:13:28]} 24. Re1 {[%emt 0:03:01]} Bf6 {[%emt 0:03:46][%cal Bg7f6,Bf6d8,Bd8a5][%mdl 32]} 25. Bf1 {[%emt 0:04:10]} Bd8 {[%emt 0:09:18]} 26. Na7 {[%emt 0:04:09]} (26. Bxd8 $142 Rxd8 27. Qc2) 26... Ra8 $1 $17 {[%emt 0:02:43]} 27. Qb3 {[%emt 0:01:46]} (27. Qd2 $17) 27... Nh4 $19 {[%emt 0:03:13]} 28. Bf2 {[%emt 0:00:30]} Rg7 {[%emt 0:00:30][%cal Rh4g2]} 29. Bxh4 {[%emt 0:00:37]} Qxh4 {[%emt 0:00:01]} 30. Nb5 {[%emt 0:01:10]} Bxa5 {[%emt 0:00:51]} 31. Ra1 {[%emt 0:00:16]} Qd8 {[%emt 0:00:49] Threatens to win with ...Qb6.} 32. Nxe5 $2 {[%emt 0:10:29]} (32. Nf2) 32... dxe5 {[%emt 0:03:37]} (32... Qb6 $142 33. Nd4 Qxd4 34. Kxh2 dxe5 35. Rxa5 Rxa5) 33. d6+ {[%emt 0:00:07]} Kh8 $2 {[%emt 0:02:19]} (33... Kh7 34. Nd4 Nxd6) 34. Qe6 {[%emt 0:00:01]} Qf6 {[%emt 0:04:09] Inhibits Qh6+.} 35. Qxf6 {[%emt 0:00:37]} Nxf6 {[%emt 0:00:12]} 36. b4 {[%emt 0:00:05] [#]} b6 {[%emt 0:01:11][%cal Oh5h4]} 37. Nc7 {[%emt 0:01:09]} (37. bxa5 Rxa5) 37... Ra7 {[%emt 0:05:07]} (37... Rd8 38. bxa5 Rxd6 39. Nb5 $15) (37... Rb8 $1 $19 38. bxa5 bxa5) 38. Nb5 $17 {[%emt 0:00:29] [#]} Ra8 {[%emt 0:01:42]} 39. Nc7 $1 $19 {[%emt 0:00:13] [#]} Rb8 $1 {[%emt 0:05:51]} (39... Rd8 40. bxa5 Rxd6 41. Nb5 $15) 40. bxa5 {[%emt 0:00:04]} bxa5 41. Nb5 {[%emt 0:00:01]} (41. Kxh2 $17 {was worth a try.} Rd7 42. Nb5) 41... Ra8 {[%emt 0:00:54]} (41... h4 $19 {[%cal Oh4h3] is more deadly. aiming for ...h3!} 42. Rxa5 h3) 42. Kxh2 (42. Nc7 $17 {was necessary.} Ra7 43. Bb5) 42... Ra6 {[%emt 0:00:55]} ({Black should try} 42... a4 $19 43. Na3 Rb7) 43. Nd4 $17 {[%emt 0:02:13]} Ne8 $2 {[%emt 0:00:24][%mdl 8192]} 44. Nf5 {[%emt 0:00:14]} (44. Bxa6 $18 {is the precise move to win.} exd4 45. e5) 44... Rxd6 {[%emt 0:00:07]} (44... Raa7 $16 {was called for.}) 45. Nxd6 $2 {[%emt 0:00:28]} ({Not} 45. Nxg7 Kxg7 46. Rxa5 Kf6 $14) ({White has to play} 45. Rxa5 $18 Re6 46. Bc4 (46. Nxg7 Kxg7 47. g3 fxg3+ 48. Kxg3 Nd6 $14)) 45... Ra7 $2 {[%emt 0:00:01][%mdl 8192]} 46. Rd1 {[%emt 0:02:05]} Nxd6 $18 {[%emt 0:00:34][%mdl 4096] Endgame KRB-KRN} 47. Bc4 {[%emt 0:00:51][%mdl 8192]} Nf7 $2 {[%emt 0:00:26]} ({Better is} 47... Nxc4 $19 48. Rc1 Ne3) 48. Kh3 {[%emt 0:00:28]} Kg7 {[%emt 0:00:55]} 49. Kh4 {[%emt 0:00:16]} a4 {[%emt 0:00:29]} 50. Ba2 {[%emt 0:01:58]} Kg6 {[%emt 0:00:18]} 51. Rd3 {[%emt 0:00:36]} a3 {[%emt 0:00:46]} 52. Rd5 {[%emt 0:01:35]} Ra8 {[%emt 0:00:59]} 53. Rd7 {[%emt 0:00:24]} Nd8 {[%emt 0:00:04]} 54. Rd6+ {[%emt 0:00:27]} Kg7 {[%emt 0:00:59]} 55. Kxh5 {[%emt 0:00:54]} Nf7 $2 {[%emt 0:00:24][%mdl 8192]} (55... Kf8 $11) 56. Rg6+ {[%emt 0:00:05]} Kf8 {[%emt 0:00:36]} 57. Rf6 {[%emt 0:00:13]} Ke7 {[%emt 0:00:00]} 58. Rxf7+ {[%emt 0:02:42] KRB-KR} Kd6 59. Kg6 Rg8+ {[%emt 0:00:42]} 60. Rg7 {[%emt 0:00:39]} Ra8 {[%emt 0:00:49]} 61. Kf5 Ra5 62. Rg6+ {[%emt 0:01:54]} Kd7 {[%emt 0:01:25]} 63. Re6 {[%emt 0:00:32]} Rb5 {[%emt 0:00:00]} 64. Rxe5 {[%emt 0:01:05]} Rb2 {[%emt 0:00:00]} 65. Be6+ {[%emt 0:00:05]} Ke7 66. Ra5 {[%emt 0:00:31] Intending e5 and mate.} Rxg2 {[%emt 0:00:34]} 67. Rxa3 {[%emt 0:00:05] White mates.} Rh2 {[%emt 0:00:08]} 68. Ra7+ {[%emt 0:00:12]} Kf8 {[%emt 0:00:00]} 69. Kxf4 {[%emt 0:00:20]} Rh6 {[%emt 0:00:00]} 70. Kf5 {[%emt 0:00:09]} Rh5+ {[%emt 0:00:00] A wild game.  Weighted Error Value: White=0.80/Black=0.73} 1-0

[Event "Portuguese-ch U14-20 2022"]
[Site "Fatima"]
[Date "2022.04.13"]
[Round "6.23"]
[White "Ribeiro, Gustavo"]
[Black "Bartolo, Filipe Diogo Correia"]
[Result "1-0"]
[ECO "A01"]
[WhiteElo "1860"]
[BlackElo "1869"]
[Annotator "NA RC"]
[PlyCount "107"]
[EventDate "2022.04.10"]
[EventType "swiss"]
[EventCountry "POR"]
[SourceTitle "playchess.com"]
[Source "ChessBase"]
[SourceQuality "1"]
[TimeControl "5400+30"]

1. b3 {[%emt 0:00:06]} d6 {[%emt 0:00:13]} 2. Bb2 {[%emt 0:00:07]} Nd7 {[%emt 0:00:04]} 3. Nf3 {[%emt 0:00:06]} Ngf6 {[%emt 0:00:04]} 4. d4 {[%emt 0:00:05]} g6 {[%emt 0:00:11]} 5. g3 {[%emt 0:00:14]} Bg7 {[%emt 0:00:06]} 6. Bg2 {[%emt 0:00:03]} O-O {[%emt 0:00:11]} 7. O-O {[%emt 0:00:17]} c6 {[%emt 0:02:09]} 8. c4 {[%emt 0:02:55]} Qc7 {[%emt 0:12:27]} 9. Nc3 {[%emt 0:05:23]} e5 {[%emt 0:00:29]} 10. d5 {[%emt 0:01:14]} c5 {[%emt 0:15:02]} 11. Nd2 {[%emt 0:01:42]} Ne8 {[%emt 0:01:47]} 12. e3 {[%emt 0:02:45]} f5 {[%emt 0:00:11]} 13. f4 {[%emt 0:00:06]} Qd8 {[%emt 0:05:05]} 14. Qc2 {[%emt 0:02:45]} e4 {[%emt 0:10:11]} 15. g4 {[%emt 0:03:01]} Qh4 {[%emt 0:02:49]} 16. gxf5 {[%emt 0:00:53]} gxf5 {[%emt 0:00:18]} 17. Qd1 {[%emt 0:00:26]} Ndf6 {[%emt 0:00:43]} 18. Qe1 {[%emt 0:00:15]} Qh6 {[%emt 0:02:42]} 19. Qg3 {[%emt 0:02:46]} Ng4 {[%emt 0:00:56]} 20. Rae1 {[%emt 0:03:14]} ({But not} 20. h3 $2 {[#]} Nxe3 $1 21. Rf2 (21. Qxe3 $2 Bd4 $19) 21... Nc2 $19) 20... Nef6 {[%emt 0:03:46]} 21. Nd1 {[%emt 0:01:49]} Nh5 {[%emt 0:17:45]} 22. Qh4 {[%emt 0:04:28]} Bxb2 {[%emt 0:01:32]} 23. Nxb2 {[%emt 0:00:07]} Nhf6 {[%emt 0:01:28]} 24. Qxh6 {[%emt 0:02:30]} Nxh6 {[%emt 0:00:06]} 25. h3 {[%emt 0:01:07]} Bd7 {[%emt 0:01:19]} 26. Kh2 {[%emt 0:01:16]} Kf7 {[%emt 0:01:13]} 27. Rg1 {[%emt 0:01:18]} Rg8 {[%emt 0:00:07]} 28. Bh1 {[%emt 0:00:29]} (28. a3 $11 {is superior.}) 28... Rxg1 {[%emt 0:02:35]} 29. Rxg1 {[%emt 0:00:38]} Rg8 {[%emt 0:00:05]} 30. Nd1 {[%emt 0:00:59]} Nhg4+ {[%emt 0:09:07]} 31. hxg4 {[%emt 0:02:09]} Nxg4+ {[%emt 0:00:04] [#]} 32. Rxg4 $1 {[%emt 0:00:58]} Rxg4 {[%emt 0:00:06]} 33. Nf2 {[%emt 0:00:09]} Rg8 {[%emt 0:00:52]} 34. Bg2 {[%emt 0:00:25]} a5 {[%emt 0:00:08]} 35. Bh3 {[%emt 0:00:34]} Ke7 {[%emt 0:00:34]} 36. a4 {[%emt 0:00:08]} Rg7 {[%emt 0:00:52]} 37. Nf1 {[%emt 0:00:46]} Kf6 {[%emt 0:01:02]} 38. Ng3 {[%emt 0:00:34]} Kg6 {[%emt 0:00:35]} 39. Bf1 {[%emt 0:00:53]} h5 {[%emt 0:00:45]} 40. Nh3 {[%emt 0:00:12]} Kh6 {[%emt 0:00:19]} (40... h4 $14) 41. Ng5 {[%emt 0:00:32]} Bc8 $2 {[%emt 0:02:01]} (41... h4 $16) 42. Bh3 {[%emt 0:00:32]} Kg6 {[%emt 0:01:52] [#]} 43. N3xe4 $1 {[%emt 0:00:47]} fxe4 {[%emt 0:00:06]} 44. Bxc8 {[%emt 0:00:04]} Kf6 {[%emt 0:00:23]} 45. Nxe4+ {[%emt 0:00:06]} Ke7 {[%emt 0:00:05]} 46. Ng5 {[%emt 0:00:03]} b6 {[%emt 0:01:11]} 47. Kh3 {[%emt 0:00:09]} Rg8 {[%emt 0:00:07]} 48. Be6 {[%emt 0:00:06]} Rf8 {[%emt 0:00:37]} 49. Kh4 {[%emt 0:00:14]} Rh8 {[%emt 0:00:04]} 50. e4 {[%emt 0:00:40]} Rf8 {[%emt 0:00:18] [#]} 51. Bf7 $1 {[%emt 0:00:04]} Rh8 $18 {[%emt 0:00:14]} 52. e5 {[%emt 0:00:20]} dxe5 {[%emt 0:00:18]} 53. fxe5 {[%emt 0:00:04]} Rf8 {[%emt 0:00:16]} 54. e6 {[%emt 0:00:59]} 1-0

[Event "Portuguese-ch U14-20 2022"]
[Site "Fatima"]
[Date "2022.04.13"]
[Round "6.24"]
[White "Guia, Artur Solovyov Eloy"]
[Black "Goncalves, Ruan Lucas Alves"]
[Result "0-1"]
[ECO "D02"]
[WhiteElo "1932"]
[BlackElo "1963"]
[Annotator "TA"]
[PlyCount "86"]
[EventDate "2022.04.10"]
[EventType "swiss"]
[EventCountry "POR"]
[SourceTitle "playchess.com"]
[Source "ChessBase"]
[SourceQuality "1"]
[TimeControl "5400+30"]

{[%evp 12,86,14,0,6,-8,0,0,44,38,45,22,43,34,64,57,124,138,139,116,120,110,123,111,122,126,250,-24,-9,-114,462,-172,254,271,282,280,266,274,283,285,270,274,283,260,261,268,263,266,264,265,372,372,376,214,204,114,189,90,85,23,135,126,125,-89,-85,-104,-101,-847,-856,-871,-836,-1746,-1697,-1810,-1750,-29996,-29997]} 1. d4 {[%emt 0:00:12]} d5 {[%emt 0:00:07]} 2. Bf4 {[%emt 0:00:20]} Nf6 {[%emt 0:00:12]} 3. Nf3 {[%emt 0:00:33]} e6 {[%emt 0:00:47]} 4. e3 {[%emt 0:00:26]} c5 {[%emt 0:01:35]} 5. c3 {[%emt 0:00:32]} Nc6 {[%emt 0:01:30]} 6. Nbd2 {[%emt 0:00:28]} Be7 {[%emt 0:06:46] Recently 6...cxd4 got a lot of attention.} 7. Ne5 Nxe5 {[%emt 0:04:08] D02: 1 d4 d5 2 Nf3 sidelines, including 2...Nf6 3 g3 and 2...Nf6 3 Bf4.} 8. dxe5 {[%emt 0:02:59]} Nd7 9. Bd3 Nf8 {[%emt 0:08:55] [#] The position is equal.} (9... g5 $5 10. Bg3 h5 $11) 10. Qe2 $146 {[%emt 0:15:51]} ({Predecessor:} 10. Bg3 Bd7 11. O-O Bc6 12. Qe2 Qc7 13. f4 g6 14. c4 dxc4 15. Nxc4 b5 16. Nd6+ Bxd6 17. exd6 {1-0 (44) Gordievsky,D (2630)-Kunal,M (2340) Hanoi 2018}) 10... a6 11. Rd1 {[%emt 0:06:21]} Ng6 {[%emt 0:01:43]} 12. Bg3 $1 {[%emt 0:03:32]} O-O {[%emt 0:02:38]} 13. h4 {[%emt 0:00:30]} f5 {[%emt 0:00:30]} (13... Re8 $14) 14. exf6 $1 $16 {[%emt 0:09:27]} Rxf6 {[%emt 0:09:26]} 15. h5 {[%emt 0:23:01]} Nf8 {[%emt 0:02:02]} 16. Be5 {[%emt 0:07:05]} Rf7 17. Qg4 {[%emt 0:01:58]} (17. h6 g6 $14) 17... Bf6 {[%emt 0:01:48]} 18. Nf3 {[%emt 0:06:08]} Nd7 {[%emt 0:11:14] [#]} (18... h6 $16 {keeps fighting.}) 19. Bxh7+ $2 {[%emt 0:08:26]} Kxh7 $11 {[%emt 0:15:08]} 20. h6 {[%emt 0:00:30]} (20. Bxf6 $11 Qxf6 21. Ng5+ Kg8 22. Nxf7 Qxf7 23. h6) 20... Kg8 $2 {[%emt 0:00:30][%mdl 8192] [#]} (20... Nxe5 21. hxg7+) (20... gxh6 21. Rxh6+ $3 {[%mdl 512]} Kxh6 22. Ke2 $1) (20... g6 $17 21. Bxf6 Rxf6 22. Ng5+ Kh8) 21. Qg6 $4 {[%emt 0:09:02][%mdl 8192]} Qf8 $4 {[%emt 0:03:22][%mdl 8192] [#]} (21... Bxe5 22. Ng5 Qxg5 23. Qxg5 $16 (23. h7+ Kh8 $11)) (21... Nxe5 $19 {and life is good for Black.} 22. Nxe5 Bxe5 23. h7+ Kh8 24. Qxf7 Bd7) 22. Ng5 $1 $18 {[%emt 0:02:37][%mdl 64] Deflection} Bxg5 {[%emt 0:00:13] [#]} 23. hxg7 $1 {[%emt 0:00:01]} Rxg7 {[%emt 0:00:23]} 24. Qxe6+ {[%emt 0:00:02]} (24. Bxg7 Qxg7 25. Qxe6+ Kf8 26. Rxd5 Be7 27. Rxd7 Bxd7 28. Qxd7 Bf6 $14) 24... Qf7 {[%emt 0:00:16] [#]} 25. Rh8+ $3 {[%emt 0:00:36][%mdl 576] Deflection} Kxh8 {[%emt 0:00:27]} 26. Qxf7 {[%emt 0:00:01][%csl Ge5][%cal Rf7g7]} Nxe5 {[%emt 0:00:51]} 27. Qe8+ {[%emt 0:00:02]} Kh7 {[%emt 0:00:48] aiming for ...Ng6.} 28. Qxe5 {[%emt 0:00:25]} Bd7 {[%emt 0:04:00]} 29. Rxd5 {[%emt 0:01:03]} Bc6 {[%emt 0:05:06]} 30. Qf5+ {[%emt 0:00:03]} ({Don't do} 30. Rxc5 $6 Rf8 31. Qd6 Kg8 32. Qe6+ Rff7 $18) 30... Kg8 {[%emt 0:00:49]} (30... Kh8 $142 31. Rd6 (31. Rxc5 Rag8 $16) 31... Re8 32. Qxc5 Re4 33. Rxc6 bxc6 34. Qxc6 Rge7 35. Qxa6 Kg7) 31. Qe6+ {[%emt 0:01:08]} Kh7 {[%emt 0:00:19]} (31... Kh8 $2 32. Rxg5 $1 {[%mdl 512]} Rxg5 33. Qh6+ Kg8 34. Qxg5+ $18) 32. Qh3+ {[%emt 0:00:32]} (32. Rxc5 $142 {Hoping for f4.} Rag8 33. Qh3+ Bh6 34. Rh5) 32... Kg8 {[%emt 0:00:36]} 33. Rd6 {[%emt 0:01:05]} (33. Rxc5 $18 Bf6 34. Qe6+ Rf7 35. Qg4+ (35. Rf5 Bd7 $14) 35... Kf8 36. Rf5) 33... Re8 {[%emt 0:01:27] Prevents Qe6+.} (33... Rf8 $16) 34. Re6 {[%emt 0:01:20]} (34. Qh5 $18 {[%cal Od6c6] Rxc6! is the strong threat.} Re5 35. f4) 34... Rf8 $16 {[%emt 0:01:26] [#]} 35. Re5 {[%emt 0:01:03]} ({White should play} 35. Rxc6 $1 $16 bxc6 36. Qe6+ Kh8 37. Qxc6) 35... Bd7 {[%emt 0:01:49] Inhibits Qe6+.} (35... Bf6 $1 $11 36. Rxc5 Rxg2) 36. Qh5 {[%emt 0:00:25]} Be7 {[%emt 0:03:38]} 37. g3 $2 {[%emt 0:00:28]} (37. Qd1 $16 {keeps the pressure on.} Bc6 38. Qb3+ Kh8 39. Rh5+ Rh7 40. Rxh7+ Kxh7 41. Qe6) 37... Bg4 $36 {[%emt 0:00:48][%mdl 3072] Black has strong compensation. Black is really pushing. &Nero is more active.} 38. Qh6 {[%emt 0:00:29]} Rf6 {[%emt 0:02:13] Inhibits Qb6. Dancing on a razor blade.} 39. Qh1 {[%emt 0:00:44][%mdl 8192] [#]} (39. Qxg7+ $17 Kxg7 40. Rxe7+ Kg6 41. Re8) 39... Bf3 $1 $19 {[%emt 0:00:31]} 40. Qh3 {[%emt 0:00:32] [#]} Rd6 $1 {[%emt 0:00:46][%csl Gf3][%cal Rd6d1]} 41. Qc8+ {[%emt 0:00:30]} Bf8 {[%emt 0:00:30][%csl Gf3][%cal Rd6d1] This bishop pair is nice.} 42. Qe6+ {[%emt 0:00:29]} Rxe6 {[%emt 0:00:30]} 43. Rxe6 {[%emt 0:00:30]} Rd7 {[%emt 0:00:00] Never resign too early!  Weighted Error Value: White=0.82/Black=0.48} 0-1

[Event "Portuguese-ch U14-20 2022"]
[Site "Fatima"]
[Date "2022.04.13"]
[Round "6.25"]
[White "Pacetti Terra, Nicolas"]
[Black "Coelho, Goncalo Cavaz"]
[Result "1-0"]
[ECO "C00"]
[WhiteElo "1756"]
[BlackElo "1680"]
[Annotator "NA RC"]
[PlyCount "65"]
[EventDate "2022.04.10"]
[EventType "swiss"]
[EventCountry "POR"]
[SourceTitle "playchess.com"]
[Source "ChessBase"]
[SourceQuality "1"]
[TimeControl "5400+30"]

1. e4 {[%emt 0:00:02]} e6 {[%emt 0:00:08]} 2. d3 {[%emt 0:00:22]} d5 {[%emt 0:00:11]} 3. Nd2 {[%emt 0:00:06]} Nf6 {[%emt 0:00:14]} 4. Ngf3 {[%emt 0:00:07]} Nc6 {[%emt 0:00:11]} 5. c3 {[%emt 0:01:59]} Bd6 {[%emt 0:00:17]} 6. Be2 {[%emt 0:02:09]} O-O {[%emt 0:00:50]} 7. O-O {[%emt 0:00:08]} a5 {[%emt 0:00:13]} 8. Re1 {[%emt 0:00:30]} Re8 {[%emt 0:00:46]} 9. Bf1 {[%emt 0:01:35]} e5 {[%emt 0:00:14]} 10. exd5 {[%emt 0:00:50]} Nxd5 {[%emt 0:00:11]} 11. Nc4 {[%emt 0:05:05]} Bg4 {[%emt 0:01:01]} 12. Ne3 {[%emt 0:07:53]} Nxe3 {[%emt 0:07:50]} 13. Bxe3 {[%emt 0:00:11]} Qf6 {[%emt 0:00:19]} 14. Be2 {[%emt 0:01:09]} h6 {[%emt 0:00:36]} 15. Nd2 {[%emt 0:11:59]} Bxe2 {[%emt 0:04:40]} 16. Rxe2 {[%emt 0:06:07]} Rad8 {[%emt 0:11:22]} 17. a4 {[%emt 0:14:07]} Qg6 {[%emt 0:20:24]} 18. Nc4 {[%emt 0:25:01]} Bf8 {[%emt 0:01:07]} 19. Rd2 {[%emt 0:00:17]} f5 {[%emt 0:15:48]} 20. f3 {[%emt 0:01:24]} f4 {[%emt 0:04:06]} 21. Bf2 {[%emt 0:00:18]} b6 {[%emt 0:02:07]} 22. Qe2 Bd6 {[%emt 0:09:15]} 23. Qe4 {[%emt 0:03:03]} Qxe4 {[%emt 0:00:19]} 24. dxe4 {[%emt 0:00:06]} Kf7 {[%emt 0:02:06]} 25. Bxb6 {[%emt 0:00:46]} Rb8 {[%emt 0:02:36]} 26. Nxd6+ {[%emt 0:00:14]} cxd6 {[%emt 0:00:26]} 27. Bc7 {[%emt 0:02:30]} Rb7 {[%emt 0:00:21]} 28. Bxd6 {[%emt 0:00:28]} Rd8 {[%emt 0:00:31]} 29. Rad1 {[%emt 0:00:09]} Rbd7 {[%emt 0:00:15]} 30. c4 {[%emt 0:00:15]} Nd4 {[%emt 0:03:03]} 31. c5 {[%emt 0:00:17]} Nb3 {[%emt 0:00:56]} 32. Rd5 {[%emt 0:00:20]} Nd4 {[%emt 0:01:17]} 33. Bxe5 {[%emt 0:01:17]} 1-0